bitfinex/quotes_BTCUSD_20241024
["timestamp","ask_amount","ask_price","bid_price","bid_amount"]
[1729770275671,0.000843,67254.0,67253.0,0.46421812]
[1729770276540,0.000843,67254.0,67253.0,0.46221812]
[1729770276747,0.000843,67254.0,67253.0,0.46921812]
[1729770277179,0.000843,67254.0,67253.0,0.46456806]
[1729770277383,0.000843,67254.0,67253.0,0.06706242]
[1729770278161,0.000843,67254.0,67253.0,0.07171294]
[1729770283362,0.000843,67254.0,67253.0,0.22784575]
[1729770284015,0.000843,67254.0,67253.0,0.07915375]
[1729770284150,0.000843,67254.0,67253.0,0.07915376]
[1729770284384,0.000843,67254.0,67253.0,0.030367]
[1729770284597,0.000843,67254.0,67253.0,0.01529852]
[1729770284793,0.000843,67254.0,67253.0,0.02292471]
[1729770285195,0.149533,67254.0,67253.0,0.01727671]
[1729770285431,0.149533,67254.0,67253.0,0.01262619]
[1729770285685,0.149533,67254.0,67253.0,0.00965077]
[1729770286106,0.149533,67254.0,67253.0,0.017277]
[1729770288415,0.000843,67254.0,67253.0,0.017277]
[1729770289341,0.149533,67254.0,67253.0,0.012277]
[1729770289553,0.324733,67254.0,67253.0,0.00762623]
[1729770289768,0.324733,67254.0,67242.0,0.22465515]
[1729770289769,0.148698,67250.0,67249.0,0.005]
[1729770290240,0.148698,67250.0,67242.0,0.22465515]
[1729770290241,0.148701,67249.0,67248.0,0.005]
[1729770290457,0.297398,67250.0,67239.0,0.09330983]
[1729770290458,0.297397,67250.0,67244.0,0.005]
[1729770290670,0.148709,67245.0,67244.0,0.005]
[1729770290878,0.148709,67245.0,67244.0,0.011704]
[1729770291575,0.148709,67245.0,67244.0,0.005]
[1729770296818,0.297408,67248.0,67246.0,0.005]
[1729770297023,0.148707,67246.0,67245.0,0.005]
[1729770298665,0.148701,67249.0,67246.0,0.161354]
[1729770298875,0.148701,67249.0,67247.0,0.09130983]
[1729770299498,0.397399,67250.0,67247.0,0.09130983]
[1729770299709,0.148703,67248.0,67247.0,0.09130983]
[1729770300873,0.148703,67248.0,67247.0,0.09330983]
[1729770301288,0.148703,67248.0,67247.0,0.09630983]
[1729770301492,0.000843,67254.0,67252.0,0.005]
[1729770301719,0.000843,67254.0,67253.0,0.09830983]
[1729770301929,0.149533,67254.0,67253.0,0.09830983]
[1729770302312,0.000843,67254.0,67253.0,0.35180041]
[1729770303376,0.000843,67254.0,67253.0,0.34714983]
[1729770303581,0.000843,67254.0,67253.0,0.35180015]
[1729770303992,0.000843,67254.0,67253.0,0.43440015]
[1729770304337,0.000843,67254.0,67253.0,0.62950718]
[1729770305164,0.000843,67254.0,67253.0,0.6369477]
[1729770305370,0.000843,67254.0,67253.0,0.62950718]
[1729770305578,0.000843,67254.0,67253.0,0.49359413]
[1729770305834,0.000843,67254.0,67253.0,0.34309032]
[1729770306239,0.000843,67254.0,67253.0,0.19439832]
[1729770306480,0.000843,67254.0,67253.0,0.11179832]
[1729770306732,0.000843,67254.0,67253.0,0.26049032]
[1729770307129,0.000843,67254.0,67253.0,0.25584]
[1729770307352,0.000843,67254.0,67253.0,0.26049032]
[1729770308291,0.000843,67254.0,67253.0,0.41099413]
[1729770309420,0.000843,67254.0,67253.0,0.26049032]
[1729770309856,0.075243,67254.0,67253.0,0.26049032]
[1729770310532,0.223933,67254.0,67253.0,0.10979832]
[1729770310825,0.223933,67254.0,67253.0,0.010648]
[1729770311061,0.223933,67254.0,67253.0,0.005648]
[1729770311303,0.223933,67254.0,67253.0,0.010648]
[1729770312007,0.297384,67253.0,67248.0,0.005]
[1729770312219,0.148705,67247.0,67246.0,0.000648]
[1729770312444,0.148705,67247.0,67246.0,0.010648]
[1729770314052,0.372624,67254.0,67253.0,0.005]
[1729770314276,0.521314,67254.0,67253.0,0.005]
[1729770314499,0.521314,67254.0,67253.0,0.01167413]
[1729770314769,0.521314,67254.0,67253.0,0.005]
[1729770315006,0.521314,67254.0,67253.0,0.01167413]
[1729770315235,0.521314,67254.0,67253.0,0.005]
[1729770315934,0.521314,67254.0,67253.0,0.01167413]
[1729770316173,0.521314,67254.0,67253.0,0.005]
[1729770316406,0.521314,67254.0,67253.0,0.01167393]
[1729770316649,0.521314,67254.0,67253.0,0.005]
[1729770318068,0.148705,67247.0,67246.0,0.010648]
[1729770318314,0.148705,67247.0,67246.0,0.03512246]
[1729770318589,0.148705,67247.0,67246.0,0.04182044]
[1729770319080,0.148705,67247.0,67246.0,0.01734598]
[1729770322375,0.148705,67247.0,67246.0,0.02399708]
[1729770322822,0.298227,67249.0,67246.0,0.02399708]
[1729770323058,0.149525,67249.0,67248.0,0.005]
[1729770323303,0.000824,67249.0,67248.0,0.07694662]
[1729770323463,0.149525,67249.0,67248.0,0.07694662]
[1729770323730,0.149525,67249.0,67248.0,0.07894662]
[1729770323928,0.000824,67249.0,67248.0,0.07894662]
[1729770325622,0.000824,67249.0,67248.0,0.46681067]
[1729770326289,0.000824,67249.0,67248.0,0.47005176]
[1729770327061,0.000824,67249.0,67248.0,0.33413871]
[1729770327268,0.000824,67249.0,67248.0,0.33213871]
[1729770327468,0.000824,67249.0,67248.0,0.47005176]
[1729770327671,0.000824,67249.0,67248.0,0.46805176]
[1729770328050,0.000824,67249.0,67248.0,0.33213871]
[1729770328256,0.000824,67249.0,67248.0,0.19087692]
[1729770328473,0.000824,67249.0,67248.0,0.18543571]
[1729770328685,0.000824,67249.0,67248.0,0.33213871]
[1729770328920,0.000824,67249.0,67248.0,0.33957995]
[1729770329354,0.000824,67249.0,67248.0,0.34157995]
[1729770329581,0.000824,67249.0,67248.0,0.18343571]
[1729770329793,0.000824,67249.0,67248.0,0.08583571]
[1729770330272,0.000824,67249.0,67248.0,0.08583549]
[1729770330507,0.000824,67249.0,67248.0,0.0858355]
[1729770331650,0.000824,67249.0,67248.0,0.0878355]
[1729770331889,0.000824,67249.0,67248.0,0.0858355]
[1729770332144,0.000824,67249.0,67248.0,0.0801875]
[1729770332386,0.000824,67249.0,67248.0,0.0808355]
[1729770332851,0.000824,67249.0,67248.0,0.0801875]
[1729770333066,0.000824,67249.0,67248.0,0.0858355]
[1729770333328,0.000824,67249.0,67248.0,0.0851875]
[1729770333559,0.000824,67249.0,67248.0,0.02523119]
[1729770338668,0.000824,67249.0,67248.0,0.0326726]
[1729770345485,0.000824,67249.0,67248.0,0.0205803]
[1729770345698,0.000824,67249.0,67248.0,0.03267227]
[1729770347223,0.000824,67249.0,67248.0,0.03467227]
[1729770347504,0.000824,67249.0,67248.0,0.59688349]
[1729770347732,0.000824,67249.0,67248.0,0.61788349]
[1729770348444,0.000824,67249.0,67248.0,0.29767668]
[1729770348662,0.000824,67249.0,67248.0,0.13197227]
[1729770348880,0.000824,67249.0,67248.0,0.03267227]
[1729770350090,0.000824,67249.0,67248.0,0.12394118]
[1729770350550,0.000824,67249.0,67248.0,0.03267227]
[1729770350771,0.000824,67249.0,67248.0,0.26123123]
[1729770352628,0.000824,67249.0,67248.0,0.24913926]
[1729770352844,0.000824,67249.0,67248.0,0.1125279]
[1729770353067,0.000824,67249.0,67248.0,0.11252799]
[1729770355265,0.000824,67249.0,67248.0,0.25658033]
[1729770355483,0.000824,67249.0,67248.0,0.24913926]
[1729770355708,0.000824,67249.0,67248.0,0.10043626]
[1729770356357,0.000824,67249.0,67248.0,0.11252814]
[1729770357282,0.000824,67249.0,67248.0,0.10508698]
[1729770357494,0.000824,67249.0,67248.0,0.10043626]
[1729770358150,0.000824,67249.0,67248.0,0.11252814]
[1729770358372,0.000824,67249.0,67248.0,0.10043626]
[1729770358777,0.000824,67249.0,67248.0,0.0205803]
[1729770359222,0.000824,67249.0,67248.0,0.01802146]
[1729770359497,0.000824,67249.0,67248.0,0.02802146]
[1729770359716,0.000824,67249.0,67248.0,0.03267219]
[1729770362926,0.000824,67249.0,67248.0,0.0205803]
[1729770363419,0.000824,67249.0,67248.0,0.0099323]
[1729770363642,0.000824,67249.0,67248.0,0.0149323]
[1729770364087,0.000824,67249.0,67248.0,0.00824109]
[1729770364911,0.000824,67249.0,67248.0,0.01817241]
[1729770365129,0.000824,67249.0,67248.0,0.00824109]
[1729770366568,0.000824,67249.0,67248.0,0.00324109]
[1729770366778,0.000824,67249.0,67248.0,0.01317246]
[1729770366990,0.000824,67249.0,67248.0,0.00824109]
[1729770367852,0.000824,67249.0,67248.0,0.01289205]
[1729770368304,0.000824,67249.0,67248.0,0.02578612]
[1729770368497,0.000824,67249.0,67248.0,0.52560918]
[1729770368719,0.000824,67249.0,67248.0,0.55360918]
[1729770371167,0.000824,67249.0,67248.0,0.67747808]
[1729770371420,0.000824,67249.0,67248.0,0.69956881]
[1729770371655,0.000824,67249.0,67248.0,0.56360745]
[1729770371872,0.000824,67249.0,67248.0,0.56748184]
[1729770372097,0.000824,67249.0,67248.0,0.56473954]
[1729770372962,0.000824,67249.0,67248.0,0.56086515]
[1729770374444,0.000824,67249.0,67248.0,0.54877442]
[1729770374728,0.000824,67249.0,67248.0,0.56086443]
[1729770375293,0.075243,67254.0,67253.0,0.027648]
[1729770375524,0.075243,67254.0,67253.0,0.86805275]
[1729770376392,0.075243,67254.0,67253.0,0.91235247]
[1729770376611,0.075243,67254.0,67253.0,0.86805275]
[1729770377713,0.075243,67254.0,67253.0,0.86805082]
[1729770378141,0.075243,67254.0,67253.0,0.8680508]
[1729770379268,0.075243,67254.0,67253.0,0.87191571]
[1729770380638,0.075243,67254.0,67253.0,0.86991571]
[1729770380848,0.075243,67254.0,67253.0,0.87191571]
[1729770381302,0.075243,67254.0,67253.0,0.86991571]
[1729770381540,0.075243,67254.0,67253.0,0.87191571]
[1729770381748,0.075243,67254.0,67253.0,0.73208948]
[1729770382192,0.075243,67254.0,67253.0,0.49131584]
[1729770382583,0.075243,67254.0,67253.0,0.63483837]
[1729770383020,0.075243,67254.0,67253.0,0.6422772]
[1729770383238,0.075243,67254.0,67253.0,0.63483837]
[1729770383473,0.075243,67254.0,67253.0,0.6392772]
[1729770383754,0.075243,67254.0,67253.0,0.72901011]
[1729770383975,0.075243,67254.0,67253.0,0.74144894]
[1729770384194,0.075243,67254.0,67253.0,0.73401011]
[1729770384414,0.075243,67254.0,67253.0,0.74144894]
[1729770384629,0.075243,67254.0,67253.0,0.74344894]
[1729770385120,0.075243,67254.0,67253.0,0.74144894]
[1729770385579,0.075243,67254.0,67253.0,0.74145063]
[1729770387576,0.075243,67254.0,67253.0,0.74345063]
[1729770387792,0.075243,67254.0,67253.0,0.74145063]
[1729770389089,0.075243,67254.0,67253.0,0.74145043]
[1729770395543,0.075243,67254.0,67253.0,0.77445043]
[1729770396413,0.075243,67254.0,67253.0,0.71760968]
[1729770396633,0.075243,67254.0,67253.0,0.72969909]
[1729770399327,0.075243,67254.0,67253.0,0.71969909]
[1729770399556,0.075243,67254.0,67253.0,0.72969909]
[1729770400195,0.075243,67254.0,67253.0,0.72969919]
[1729770407561,0.075243,67254.0,67253.0,0.719699]
[1729770407776,0.075243,67254.0,67253.0,0.729699]
[1729770409349,0.075243,67254.0,67253.0,0.73357562]
[1729770411111,0.075243,67254.0,67253.0,0.71760968]
[1729770411341,0.075243,67254.0,67253.0,0.72969899]
[1729770414000,0.075243,67254.0,67253.0,0.73169899]
[1729770415018,0.075243,67254.0,67253.0,0.72969899]
[1729770415390,0.075243,67254.0,67253.0,0.73169899]
[1729770416606,0.075243,67254.0,67253.0,0.72969899]
[1729770417608,0.075243,67254.0,67253.0,0.73169899]
[1729770418025,0.075243,67254.0,67253.0,0.82290919]
[1729770418242,0.000843,67257.0,67256.0,0.199333]
[1729770418492,0.000843,67257.0,67256.0,0.73462127]
[1729770419794,0.000843,67257.0,67256.0,0.55220087]
[1729770420007,0.000843,67257.0,67256.0,0.73462127]
[1729770421740,0.000843,67257.0,67256.0,0.73933291]
[1729770422617,0.000843,67257.0,67256.0,0.74320888]
[1729770422820,0.000843,67257.0,67256.0,0.73933291]
[1729770423244,0.000843,67257.0,67256.0,0.74320883]
[1729770424099,0.000843,67257.0,67256.0,0.7272436]
[1729770424306,0.000843,67257.0,67256.0,0.7252436]
[1729770424716,0.000843,67257.0,67256.0,0.73733155]
[1729770424935,0.000843,67257.0,67256.0,0.74120705]
[1729770425141,0.000843,67257.0,67256.0,0.55878665]
[1729770425344,0.000843,67257.0,67256.0,0.64734764]
[1729770425550,0.000843,67257.0,67256.0,0.64812171]
[1729770426275,0.000843,67257.0,67256.0,0.34531151]
[1729770426425,0.000843,67257.0,67256.0,0.32863676]
[1729770426640,0.000843,67257.0,67256.0,0.41984696]
[1729770427276,0.000843,67257.0,67256.0,0.41784696]
[1729770427736,0.000843,67257.0,67256.0,0.50905716]
[1729770427951,0.000843,67257.0,67256.0,0.41784696]
[1729770429655,0.000843,67257.0,67256.0,0.49696885]
[1729770429877,0.000843,67257.0,67256.0,0.68445826]
[1729770430345,0.000843,67257.0,67256.0,0.68245826]
[1729770430556,0.000843,67257.0,67256.0,0.68445826]
[1729770430785,0.000843,67257.0,67256.0,0.71245826]
[1729770430991,0.000843,67257.0,67256.0,0.72633447]
[1729770431220,0.000843,67257.0,67256.0,0.72245826]
[1729770432536,0.000843,67257.0,67256.0,0.731757]
[1729770432755,0.000843,67257.0,67256.0,0.77601337]
[1729770432970,0.000843,67257.0,67256.0,0.77601138]
[1729770433185,0.000843,67257.0,67256.0,0.73175501]
[1729770433833,0.22465515,67274.0,67273.0,0.161296]
[1729770434213,0.22465515,67274.0,67273.0,0.50630804]
[1729770434443,0.22465515,67274.0,67273.0,0.5156058]
[1729770434656,0.0125,67279.0,67278.0,0.01]
[1729770434871,0.0125,67279.0,67278.0,0.25449536]
[1729770435754,0.0125,67279.0,67278.0,0.10585936]
[1729770436440,0.0813,67283.0,67282.0,0.000648]
[1729770436933,0.0813,67283.0,67282.0,0.00529684]
[1729770437379,0.06783619,67285.0,67284.0,0.000648]
[1729770437607,0.06783619,67285.0,67284.0,0.16391956]
[1729770437608,0.02326525,67285.0,67284.0,0.16391956]
[1729770437836,0.22465515,67288.0,67284.0,0.01529656]
[1729770438097,0.22465515,67288.0,67287.0,0.0932102]
[1729770438317,0.06685642,67293.0,67287.0,0.0932102]
[1729770438318,0.26922609,67293.0,67288.0,0.002]
[1729770438766,0.41783009,67293.0,67285.0,0.04534298]
[1729770438983,0.04457094,67293.0,67286.0,0.00464835]
[1729770439211,0.04457094,67293.0,67285.0,0.01]
[1729770439212,0.32465515,67293.0,67287.0,0.00464835]
[1729770439439,0.32465515,67293.0,67285.0,0.01]
[1729770439440,0.1,67293.0,67285.0,0.01]
[1729770439662,0.1,67293.0,67286.0,0.00464835]
[1729770439889,0.1,67293.0,67285.0,0.01]
[1729770440358,0.1,67293.0,67286.0,0.00464835]
[1729770440655,0.14450647,67293.0,67286.0,0.01226806]
[1729770440880,0.148608,67291.0,67286.0,0.01291606]
[1729770441104,0.14861,67290.0,67285.0,0.01]
[1729770441321,0.389114,67292.0,67285.0,0.01]
[1729770441322,0.0919,67292.0,67286.0,0.000648]
[1729770441775,0.389114,67292.0,67286.0,0.000648]
[1729770441998,0.148609,67291.0,67287.0,0.01226127]
[1729770442222,0.148609,67291.0,67286.0,0.000648]
[1729770442683,0.389114,67292.0,67284.0,0.005]
[1729770442922,0.389114,67292.0,67282.0,0.005648]
[1729770442923,0.41932084,67291.0,67282.0,0.000648]
[1729770443151,0.148614,67288.0,67284.0,0.005]
[1729770443591,0.14861,67290.0,67284.0,0.005]
[1729770443816,0.148611,67290.0,67284.0,0.005]
[1729770444274,0.148611,67290.0,67283.0,0.005]
[1729770444508,0.148611,67290.0,67284.0,0.005]
[1729770444737,0.09896886,67289.0,67282.0,0.000648]
[1729770444962,0.09896886,67289.0,67284.0,0.005]
[1729770445196,0.14861,67290.0,67284.0,0.005]
[1729770446312,0.340507,67292.0,67284.0,0.005]
[1729770446527,0.148609,67291.0,67284.0,0.0962102]
[1729770446749,0.489113,67292.0,67285.0,0.0122753]
[1729770446977,0.148611,67290.0,67285.0,0.0122753]
[1729770447205,0.340508,67292.0,67285.0,0.0122753]
[1729770447424,0.1919,67292.0,67285.0,0.0122753]
[1729770447654,0.148609,67291.0,67285.0,0.0122753]
[1729770448099,0.000824,67290.0,67285.0,0.0122753]
[1729770449251,0.149435,67290.0,67285.0,0.0122753]
[1729770449507,0.000824,67290.0,67285.0,0.0129233]
[1729770457601,0.000824,67290.0,67286.0,0.000648]
[1729770458036,0.000824,67290.0,67287.0,0.01227442]
[1729770459283,1.155724,67290.0,67287.0,0.01227442]
[1729770459935,1.155724,67290.0,67286.0,0.000648]
[1729770460144,1.155724,67290.0,67288.0,0.01226754]
[1729770460351,1.155724,67290.0,67287.0,0.01227442]
[1729770460559,1.155724,67290.0,67289.0,0.00980853]
[1729770460797,1.155724,67290.0,67288.0,0.01226752]
[1729770460983,1.155724,67290.0,67286.0,0.000648]
[1729770461208,1.155724,67290.0,67289.0,0.00980851]
[1729770461418,1.155724,67290.0,67286.0,0.000648]
[1729770461629,1.155724,67290.0,67287.0,0.00464837]
[1729770461837,1.155724,67290.0,67287.0,0.01227439]
[1729770462291,1.155724,67290.0,67286.0,0.000648]
[1729770462517,1.155724,67290.0,67288.0,0.01226753]
[1729770462721,1.155724,67290.0,67287.0,0.0122744]
[1729770462925,1.155724,67290.0,67286.0,0.000648]
[1729770462926,1.155724,67290.0,67289.0,0.00980852]
[1729770463136,1.155724,67290.0,67288.0,0.01226753]
[1729770463353,1.155724,67290.0,67286.0,0.000648]
[1729770463610,1.155724,67290.0,67289.0,0.00980852]
[1729770463821,1.155724,67290.0,67289.0,0.00464837]
[1729770468889,1.304334,67290.0,67289.0,0.00464837]
[1729770470031,1.304334,67290.0,67284.0,0.01]
[1729770470032,0.148621,67285.0,67284.0,0.005]
[1729770470541,0.148621,67285.0,67284.0,0.00464848]
[1729770470542,0.15050381,67285.0,67284.0,0.00464848]
[1729770470785,0.148641,67277.0,67275.0,0.22465515]
[1729770471010,0.148641,67277.0,67276.0,0.01708712]
[1729770471246,0.15050381,67286.0,67276.0,0.01708712]
[1729770471474,0.15050381,67286.0,67278.0,0.005]
[1729770471698,0.14863,67282.0,67279.0,0.00464889]
[1729770471922,0.14863,67282.0,67280.0,0.00464889]
[1729770472167,0.14863,67282.0,67281.0,0.00464889]
[1729770472922,0.297241,67286.0,67281.0,0.0155828]
[1729770473128,0.148621,67285.0,67282.0,0.00464889]
[1729770473361,0.148621,67285.0,67281.0,0.093948]
[1729770473597,0.148624,67284.0,67282.0,0.00464883]
[1729770473847,0.297243,67285.0,67281.0,0.000648]
[1729770474068,0.148629,67282.0,67279.0,0.000648]
[1729770474296,0.297247,67284.0,67280.0,0.00464883]
[1729770474531,0.14863,67281.0,67280.0,0.0098593]
[1729770474778,0.14863,67281.0,67280.0,0.00464883]
[1729770475686,0.14863,67281.0,67280.0,0.01450813]
[1729770476799,0.14863,67281.0,67280.0,0.00464883]
[1729770480364,0.14863,67281.0,67280.0,0.01450794]
[1729770480580,0.14863,67281.0,67280.0,0.00464883]
[1729770481656,0.14863,67281.0,67280.0,0.01450794]
[1729770481866,0.14863,67281.0,67280.0,0.01450789]
[1729770482720,0.04456533,67282.0,67280.0,0.01450789]
[1729770482966,0.04456533,67282.0,67281.0,0.00464883]
[1729770483637,0.19319333,67282.0,67281.0,0.00464883]
[1729770485636,0.148628,67282.0,67281.0,0.00464883]
[1729770485843,0.04456533,67283.0,67281.0,0.00464883]
[1729770486074,0.04456533,67283.0,67279.0,0.005]
[1729770486324,0.364097,67284.0,67280.0,0.00464883]
[1729770486325,0.14863,67281.0,67280.0,0.00464883]
[1729770486550,0.148635,67279.0,67275.0,0.000648]
[1729770486770,0.19320033,67279.0,67276.0,0.004649]
[1729770487008,0.19320033,67279.0,67275.0,0.000648]
[1729770487009,0.34183033,67280.0,67277.0,0.004649]
[1729770487221,0.148634,67279.0,67278.0,0.004649]
[1729770487447,0.148638,67278.0,67275.0,0.000648]
[1729770487667,0.19320133,67279.0,67276.0,0.00464907]
[1729770487875,0.19320033,67279.0,67276.0,0.00464907]
[1729770488159,0.148636,67278.0,67277.0,0.00464907]
[1729770488372,0.19319877,67279.0,67277.0,0.00464907]
[1729770488597,0.148635,67279.0,67275.0,0.000648]
[1729770488820,0.19319877,67279.0,67276.0,0.00464904]
[1729770489049,0.19319877,67279.0,67277.0,0.00464904]
[1729770489279,0.148652,67271.0,67270.0,0.1096]
[1729770489516,0.148648,67273.0,67272.0,0.005]
[1729770489740,0.148648,67273.0,67272.0,0.00964932]
[1729770490161,0.148648,67273.0,67272.0,0.005]
[1729770492295,0.297296,67273.0,67272.0,0.005]
[1729770492518,0.445944,67273.0,67272.0,0.005]
[1729770492939,0.297296,67273.0,67272.0,0.005]
[1729770493154,0.445944,67273.0,67272.0,0.005]
[1729770494164,0.297296,67273.0,67272.0,0.005]
[1729770494375,0.445944,67273.0,67272.0,0.005]
[1729770495002,0.148648,67273.0,67272.0,0.005]
[1729770495626,0.148645,67274.0,67273.0,0.005]
[1729770496260,0.148645,67274.0,67267.0,0.005648]
[1729770496261,0.297287,67275.0,67267.0,0.000648]
[1729770496493,0.148645,67274.0,67273.0,0.005]
[1729770497401,0.148658,67269.0,67266.0,0.005]
[1729770497644,0.04453792,67275.0,67268.0,0.005]
[1729770497882,0.04453792,67275.0,67265.0,0.102148]
[1729770497883,0.14866,67268.0,67266.0,0.005]
[1729770498126,0.14866,67268.0,67265.0,0.0965]
[1729770498403,0.148661,67267.0,67266.0,0.005]
[1729770498624,0.29731,67270.0,67262.0,0.000648]
[1729770498876,0.14867,67263.0,67261.0,0.09454047]
[1729770499095,0.14867,67263.0,67262.0,0.00464998]
[1729770499322,0.297335,67264.0,67261.0,0.09454047]
[1729770499597,0.0445205,67270.0,67261.0,0.09454047]
[1729770499830,0.14867,67263.0,67262.0,0.00965005]
[1729770500050,0.14867,67263.0,67262.0,0.01165005]
[1729770500278,0.14867,67263.0,67262.0,0.007]
[1729770500495,0.297329,67266.0,67262.0,0.007]
[1729770500496,0.148664,67266.0,67264.0,0.005]
[1729770500724,0.148664,67266.0,67265.0,0.005]
[1729770502547,0.148659,67268.0,67266.0,0.005]
[1729770503048,0.148662,67267.0,67266.0,0.005]
[1729770503287,0.148659,67268.0,67266.0,0.005]
[1729770503532,0.148657,67269.0,67268.0,0.002]
[1729770503763,0.297309,67270.0,67268.0,0.00190194]
[1729770503990,0.148658,67269.0,67268.0,0.00190194]
[1729770506545,0.1706,67276.0,67268.0,0.00190194]
[1729770506546,0.000824,67281.0,67278.0,0.010648]
[1729770506801,0.000824,67281.0,67280.0,0.2524902]
[1729770507029,0.000824,67281.0,67280.0,0.01254961]
[1729770507303,0.000824,67281.0,67280.0,0.16118161]
[1729770507547,0.000824,67281.0,67280.0,0.01254961]
[1729770508000,0.18402392,67285.0,67280.0,0.01254961]
[1729770508250,1.2002445,67290.0,67280.0,0.01254961]
[1729770508251,1.155724,67290.0,67289.0,0.000648]
[1729770508473,1.155724,67290.0,67289.0,0.076848]
[1729770508695,1.155724,67290.0,67289.0,0.078848]
[1729770510118,1.155724,67290.0,67289.0,0.22746]
[1729770510336,1.155724,67290.0,67289.0,0.078848]
[1729770510780,1.155724,67290.0,67289.0,0.17562155]
[1729770510994,1.155724,67290.0,67289.0,0.17362155]
[1729770511221,1.155724,67290.0,67289.0,0.076848]
[1729770512307,1.155724,67290.0,67289.0,0.078848]
[1729770512833,1.155724,67290.0,67289.0,0.46575148]
[1729770513783,1.155724,67290.0,67289.0,0.31713948]
[1729770513989,1.155724,67290.0,67289.0,0.46375148]
[1729770515291,1.155724,67290.0,67289.0,0.179348]
[1729770516169,1.155724,67290.0,67289.0,0.31796]
[1729770516387,1.155724,67290.0,67289.0,0.32796]
[1729770517784,1.155724,67290.0,67289.0,0.179348]
[1729770518018,1.155724,67290.0,67289.0,0.32996]
[1729770518476,1.155724,67290.0,67289.0,0.179348]
[1729770518738,1.304334,67290.0,67289.0,0.010648]
[1729770518955,1.304334,67290.0,67289.0,0.01]
[1729770519174,1.304334,67290.0,67289.0,0.005]
[1729770519622,1.601556,67290.0,67289.0,0.005]
[1729770519862,1.304334,67290.0,67289.0,0.01]
[1729770520325,1.304334,67290.0,67289.0,0.010648]
[1729770522857,1.155724,67290.0,67289.0,0.010648]
[1729770523758,1.304334,67290.0,67289.0,0.010648]
[1729770524028,1.304334,67290.0,67289.0,0.07785815]
[1729770524893,1.155724,67290.0,67289.0,0.07785815]
[1729770525800,1.155724,67290.0,67289.0,0.17315815]
[1729770527644,1.155724,67290.0,67289.0,0.32177015]
[1729770531833,1.155724,67290.0,67289.0,0.17315815]
[1729770532049,1.155724,67290.0,67289.0,0.32177015]
[1729770532481,1.155724,67290.0,67289.0,0.17315815]
[1729770532708,1.155724,67290.0,67289.0,0.01]
[1729770532981,1.155724,67290.0,67289.0,0.005]
[1729770532982,1.304334,67290.0,67289.0,0.005]
[1729770534402,1.155724,67290.0,67289.0,0.005]
[1729770534636,1.601555,67290.0,67289.0,0.005]
[1729770535553,1.601555,67290.0,67289.0,0.0142096]
[1729770536361,1.601555,67290.0,67289.0,0.01885783]
[1729770536362,1.304334,67290.0,67289.0,0.01885783]
[1729770537816,1.304334,67290.0,67289.0,0.00964823]
[1729770538759,1.155724,67290.0,67289.0,0.01029623]
[1729770538950,1.155724,67290.0,67289.0,0.26445479]
[1729770539299,1.155724,67290.0,67289.0,0.27189173]
[1729770539834,1.155724,67290.0,67289.0,0.3668736]
[1729770540511,1.155724,67290.0,67289.0,0.2182616]
[1729770540956,1.155724,67290.0,67289.0,0.12327973]
[1729770541176,1.155724,67290.0,67289.0,0.02463173]
[1729770541364,1.155724,67290.0,67289.0,0.03027973]
[1729770541852,1.01417945,67290.0,67289.0,0.02284279]
[1729770542712,1.01417945,67290.0,67289.0,0.02484279]
[1729770542927,1.01417945,67290.0,67289.0,0.08943817]
[1729770543816,1.01417945,67290.0,67289.0,0.08743817]
[1729770545384,1.01417945,67290.0,67289.0,0.08278994]
[1729770545599,1.01417945,67290.0,67289.0,0.08743799]
[1729770545893,1.01417945,67290.0,67289.0,0.08278994]
[1729770546108,1.16278945,67290.0,67289.0,0.01219462]
[1729770546322,1.16278945,67290.0,67289.0,0.01219488]
[1729770546540,1.01417945,67290.0,67287.0,0.000648]
[1729770546768,0.148612,67289.0,67288.0,0.00464845]
[1729770547871,0.148619,67286.0,67285.0,0.001648]
[1729770548108,0.148619,67286.0,67285.0,0.00629667]
[1729770548340,0.148619,67286.0,67285.0,0.001648]
[1729770548972,0.148617,67287.0,67285.0,0.001648]
[1729770549186,0.148615,67288.0,67285.0,0.001648]
[1729770549396,0.297225,67289.0,67285.0,0.001648]
[1729770549690,0.148614,67288.0,67286.0,0.00464851]
[1729770549906,0.148613,67289.0,67286.0,0.00464851]
[1729770550150,1.01417945,67290.0,67287.0,0.00464851]
[1729770550151,0.148614,67288.0,67287.0,0.00464851]
[1729770550361,0.148614,67288.0,67287.0,0.01220373]
[1729770550744,0.148614,67288.0,67287.0,0.00464851]
[1729770552599,0.19311166,67288.0,67287.0,0.00464851]
[1729770553710,0.148614,67288.0,67287.0,0.00464851]
[1729770555528,0.19318458,67288.0,67287.0,0.00464851]
[1729770556915,0.04457058,67288.0,67287.0,0.04752648]
[1729770557171,1.20818503,67290.0,67287.0,0.05508153]
[1729770557414,1.05957403,67290.0,67289.0,0.000648]
[1729770557663,1.05957403,67290.0,67287.0,0.00755505]
[1729770557664,0.148614,67288.0,67287.0,0.00755505]
[1729770557918,0.148614,67288.0,67286.0,0.000648]
[1729770557919,0.19318268,67288.0,67286.0,0.000648]
[1729770558147,0.19318268,67288.0,67287.0,0.01220344]
[1729770558624,0.19318268,67288.0,67285.0,0.001648]
[1729770558625,0.148619,67286.0,67285.0,0.001648]
[1729770558848,0.21547536,67286.0,67285.0,0.00629662]
[1729770559324,0.19318863,67286.0,67285.0,0.00629654]
[1729770559574,0.148619,67286.0,67285.0,0.00629654]
[1729770560523,0.21547403,67286.0,67285.0,0.001648]
[1729770563282,0.40225851,67286.0,67285.0,0.001648]
[1729770563536,0.31311846,67286.0,67285.0,0.001648]
[1729770563745,0.40225851,67286.0,67285.0,0.001648]
[1729770563956,0.55276232,67286.0,67285.0,0.001648]
[1729770564177,0.74932197,67286.0,67285.0,0.001648]
[1729770564404,0.8884217,67286.0,67285.0,0.001648]
[1729770565107,0.73791789,67286.0,67285.0,0.001648]
[1729770566660,0.64531789,67286.0,67285.0,0.001648]
[1729770567087,0.86997304,67286.0,67285.0,0.001648]